[Event "11th KIIT Festival 2018"]
[Site "Bhubaneswar"]
[Date "2018.05.29"]
[Round "7"]
[White "Mitrabha, Guha"]
[Black "Srihari L R"]
[Result "1/2-1/2"]
[ECO "A10"]
[WhiteElo "2375"]
[BlackElo "2015"]
[Annotator "NA"]
[PlyCount "24"]
[EventDate "2018.??.??"]
[EventType "swiss"]
[EventCountry "IND"]
[SourceTitle "playchess.com"]
[Source "ChessBase"]
[SourceQuality "1"]
[TimeControl "5400+30"]

{[%evp 9,24,-4,-3,-21,-24,-52,10,12,14,-20,-12,-18,-8,-79,-21,-61,-10]} 1. d3 {[%emt 0:00:00]} g6 {[%emt 0:00:31]} 2. c4 {[%emt 0:00:01]} Bg7 {[%emt 0:00:00]} 3. Nf3 {[%emt 0:00:00]} f5 {[%emt 0:00:00]} 4. Nc3 {[%emt 0:00:00]} Nf6 {[%emt 0:00:02]} 5. Bg5 {[%emt 0:00:00]} (5. e4 d6 6. exf5 Bxf5 7. d4 O-O 8. Bd3 Bg4 9. Be2 Nc6 10. d5 Bxf3 11. Bxf3 Ne5 12. Be2 Qd7 {½-½ (36) Matlakov,M (2701)-Cheparinov,I (2689) Caleta 2017}) 5... d6 {[%emt 0:01:58]} 6. h4 $146 {[%emt 0:00:16] A10: English Opening: Unusual Replies for Black} ({Predecessor:} 6. g3 c5 7. Bg2 Nc6 8. O-O e5 9. Nd5 h6 10. Bxf6 Bxf6 11. a3 Be6 12. Ne1 O-O {1-0 (36) Lajthajm,B (2434)-Skoko,M (2161) Stari Banovci 2017}) 6... Nc6 {[%emt 0:05:16]} 7. e3 {[%emt 0:00:12]} h6 {[%emt 0:00:19]} ({Black should play} 7... Ng4 $15) 8. Bxf6 $1 $11 {[%emt 0:00:46] The position is equal.} Bxf6 {[%emt 0:00:00]} 9. Nd5 {[%emt 0:00:11]} e6 {[%emt 0:00:29]} 10. Nxf6+ {[%emt 0:11:29]} Qxf6 {[%emt 0:00:01]} 11. Rc1 {[%emt 0:01:13]} (11. Qb3 $11) 11... O-O {[%emt 0:02:51]} (11... Qxb2 $17 12. a4 b6) 12. c5 {[%emt 0:03:19]} Bd7 {[%emt 0:00:00]} (12... Qxb2 $15 13. d4 a6) 1/2-1/2

[Event "11th KIIT Festival 2018"]
[Site "Bhubaneswar"]
[Date "2018.05.29"]
[Round "7"]
[White "Raahul V S"]
[Black "Rathnakaran, K."]
[Result "0-1"]
[ECO "A42"]
[WhiteElo "2231"]
[BlackElo "2377"]
[Annotator "NA"]
[PlyCount "96"]
[EventDate "2018.??.??"]
[EventType "swiss"]
[EventCountry "IND"]
[SourceTitle "playchess.com"]
[Source "ChessBase"]
[SourceQuality "1"]
[TimeControl "5400+30"]

1. c4 {[%emt 0:00:00]} g6 {[%emt 0:00:30]} 2. d4 {[%emt 0:00:00]} Bg7 {[%emt 0:00:00]} 3. Nc3 {[%emt 0:00:01]} d6 {[%emt 0:00:00]} 4. e4 {[%emt 0:00:00]} Nc6 {[%emt 0:00:01]} 5. Be3 {[%emt 0:00:01]} e5 {[%emt 0:00:00]} 6. dxe5 {[%emt 0:00:00]} dxe5 {[%emt 0:00:00]} 7. Qxd8+ {[%emt 0:00:23]} Kxd8 {[%emt 0:00:00]} 8. O-O-O+ {[%emt 0:02:24]} Bd7 {[%emt 0:00:02] A42: Modern Defence: Averbakh Variation} 9. c5 {[%emt 0:01:19]} Bh6 {[%emt 0:05:40]} 10. Bc4 {[%emt 0:02:38]} Bxe3+ {[%emt 0:00:10]} 11. fxe3 {[%emt 0:00:00]} Nh6 {[%emt 0:00:17]} 12. Nf3 {[%emt 0:01:34]} Kc8 {[%emt 0:19:43]} 13. Bb5 $146 {[%emt 0:00:01]} ({Predecessor:} 13. Rd2 Be6 14. Bd5 Re8 15. Ng5 Nd8 16. Nxh7 {1-0 (27) Kozul,Z (2490)-Schneider,B (2200) Ptuj 1989}) 13... f6 {[%emt 0:00:01]} 14. Nd5 {[%emt 0:00:00]} Ng8 {[%emt 0:00:01]} 15. Rhf1 {[%emt 0:01:25]} Nb8 {[%emt 0:02:39]} 16. Be2 {[%emt 0:01:53]} b5 {[%emt 0:26:30]} 17. Nh4 {[%emt 0:07:44]} Na6 {[%emt 0:03:20]} 18. b4 {[%emt 0:00:14]} Nb8 {[%emt 0:14:12]} 19. Rd3 {[%emt 0:00:01]} ({But not} 19. Nxf6 $6 Nxf6 20. Rxf6 a5 $14) 19... a5 {[%emt 0:02:27]} 20. Ra3 {[%emt 0:00:01]} Kb7 {[%emt 0:07:00]} 21. bxa5 {[%emt 0:00:00]} Na6 {[%emt 0:00:59]} 22. Rc3 {[%emt 0:00:29]} Nb8 {[%emt 0:03:59]} 23. Nxf6 {[%emt 0:09:27]} (23. Kb2 $16) 23... Nxf6 {[%emt 0:00:57]} 24. Rxf6 {[%emt 0:00:01]} Rxa5 {[%emt 0:00:45]} 25. a3 {[%emt 0:00:00]} Bc6 {[%emt 0:04:13]} 26. Re6 {[%emt 0:00:43]} Nd7 {[%emt 0:03:03]} 27. Nf3 {[%emt 0:00:43]} Rha8 {[%emt 0:06:59]} 28. Kb2 {[%emt 0:00:00]} ({Don't play} 28. Nxe5 $6 Nxe5 29. Rxe5 Rxa3 $11) 28... Ra4 $16 {[%emt 0:00:00]} (28... Rf8 $142) 29. Nxe5 $2 {[%emt 0:00:01]} (29. Rb3 $16) 29... b4 {[%emt 0:00:17]} 30. Rc4 {[%emt 0:00:00]} Nxe5 {[%emt 0:00:00]} 31. Rxe5 {[%emt 0:00:00]} Bb5 {[%emt 0:00:00]} 32. c6+ {[%emt 0:00:01]} Kb6 {[%emt 0:00:00]} 33. Rxb5+ {[%emt 0:00:01]} Kxb5 {[%emt 0:00:00]} 34. Rxb4+ {[%emt 0:00:05]} Kc5 {[%emt 0:00:00]} 35. Rb3 {[%emt 0:00:10]} Rxe4 {[%emt 0:00:00]} 36. Rc3+ {[%emt 0:00:41]} Kd6 {[%emt 0:00:00]} 37. Rd3+ {[%emt 0:00:00]} Ke6 {[%emt 0:00:00]} 38. Bf3 {[%emt 0:00:00]} Rb8+ {[%emt 0:00:16]} 39. Ka2 {[%emt 0:00:00]} Re5 {[%emt 0:02:11]} 40. a4 {[%emt 0:00:00]} Kf6 {[%emt 0:03:45]} 41. Bd5 {[%emt 0:00:00]} Rf5 {[%emt 0:00:00]} 42. Rd2 {[%emt 0:00:02]} Rf1 {[%emt 0:00:00]} 43. Bc4 {[%emt 0:05:35]} Re1 {[%emt 0:00:00]} 44. Rd7 {[%emt 0:00:39]} Rb4 {[%emt 0:00:00]} 45. Rf7+ {[%emt 0:01:21]} Kg5 {[%emt 0:01:00]} 46. Bb5 {[%emt 0:00:00]} Rxe3 {[%emt 0:01:48]} 47. Rxc7 {[%emt 0:00:00]} Rf4 {[%emt 0:00:00]} 48. h4+ {[%emt 0:00:01]} Kh6 {[%emt 0:00:00]} 0-1

[Event "11th KIIT Festival 2018"]
[Site "Bhubaneswar"]
[Date "2018.05.29"]
[Round "7"]
[White "Shiva Pavan Teja Sharma U"]
[Black "Shyaamnikhil P"]
[Result "0-1"]
[ECO "B40"]
[WhiteElo "2006"]
[BlackElo "2401"]
[Annotator "NA"]
[PlyCount "96"]
[EventDate "2018.??.??"]
[EventType "swiss"]
[EventCountry "IND"]
[SourceTitle "playchess.com"]
[Source "ChessBase"]
[SourceQuality "1"]
[TimeControl "5400+30"]

1. e4 {[%emt 0:00:00]} c5 {[%emt 0:00:31]} 2. Nf3 {[%emt 0:00:01]} a6 {[%emt 0:00:09]} 3. Nc3 {[%emt 0:04:32]} e6 {[%emt 0:01:28]} 4. Be2 {[%emt 0:00:53]} b5 {[%emt 0:04:05] B40: Sicilian: 2...e6, Unusual lines} (4... d6 5. d4 cxd4 6. Nxd4 Nf6 7. Be3 Qc7 8. Qd2 b5 9. f3 Nbd7 10. a3 h5 11. O-O Bb7 12. Rfd1 d5 13. exd5 Nxd5 14. Nxd5 Bxd5 15. Bf4 Bd6 16. Bxd6 Qxd6 {½-½ (29) Wei,Y (2740)-Ivanchuk,V (2732) Hoogeveen 2017}) 5. O-O {[%emt 0:04:38]} Bb7 {[%emt 0:01:16]} 6. d3 {[%emt 0:00:10]} d6 {[%emt 0:02:27]} 7. a4 {[%emt 0:01:57]} b4 {[%emt 0:00:52]} 8. Nb1 {[%emt 0:00:09]} Nc6 $146 {[%emt 0:00:43]} ({Predecessor:} 8... Be7 9. Be3 Nd7 10. Nbd2 Ngf6 11. Ne1 d5 12. exd5 Nxd5 {0-1 (44) Lilja,R (2111)-Pedersen,G (2218) Helsingor 2011}) 9. b3 {[%emt 0:04:30]} Be7 {[%emt 0:02:34]} 10. Bb2 {[%emt 0:00:23]} Bf6 {[%emt 0:00:13]} 11. e5 {[%emt 0:04:56]} Nxe5 {[%emt 0:19:30]} 12. Nxe5 {[%emt 0:00:29]} Bxe5 {[%emt 0:00:14]} 13. Bxe5 {[%emt 0:00:42]} dxe5 {[%emt 0:00:00]} 14. Nd2 {[%emt 0:00:27]} Ne7 {[%emt 0:01:14]} 15. Bf3 {[%emt 0:02:20]} Bxf3 {[%emt 0:09:43]} 16. Qxf3 {[%emt 0:00:01]} O-O {[%emt 0:06:45]} 17. Rae1 {[%emt 0:00:02]} f6 {[%emt 0:08:01]} 18. Qh3 {[%emt 0:00:59]} Nf5 {[%emt 0:03:15]} 19. Re4 {[%emt 0:07:06]} Qd7 {[%emt 0:07:59]} 20. Nc4 {[%emt 0:04:43]} Rad8 {[%emt 0:13:27]} 21. Rfe1 {[%emt 0:00:02]} Nd4 {[%emt 0:06:52]} 22. Rc1 {[%emt 0:02:52]} Qf7 {[%emt 0:02:42]} 23. Kf1 {[%emt 0:00:33]} g6 {[%emt 0:04:28]} 24. Ke1 {[%emt 0:03:32]} Qb7 $17 {[%emt 0:02:01]} 25. Na5 {[%emt 0:02:45]} Qd5 {[%emt 0:01:37]} 26. Nc4 {[%emt 0:00:01]} Qb7 {[%emt 0:00:23]} 27. Na5 {[%emt 0:00:21]} Qd5 {[%emt 0:00:31]} 28. Nc4 {[%emt 0:00:06]} Rf7 {[%emt 0:00:04]} 29. Kf1 {[%emt 0:04:20]} Qb7 {[%emt 0:00:33]} 30. Ne3 {[%emt 0:03:28]} Rff8 {[%emt 0:00:00]} 31. Nc4 {[%emt 0:01:32]} Rfe8 {[%emt 0:00:27]} 32. Na5 {[%emt 0:01:25]} Qg7 {[%emt 0:00:24]} 33. Nc4 {[%emt 0:00:32]} Nc6 {[%emt 0:01:22]} 34. Ree1 {[%emt 0:00:01]} Nd4 {[%emt 0:01:04]} 35. Re4 {[%emt 0:00:11]} h5 {[%emt 0:00:00]} 36. Qe3 {[%emt 0:01:20]} Kh7 {[%emt 0:00:00]} 37. Ke1 {[%emt 0:02:03]} Rd5 {[%emt 0:00:00]} 38. Nb6 {[%emt 0:01:53]} Qc7 {[%emt 0:00:00]} 39. Nxd5 {[%emt 0:01:52]} exd5 {[%emt 0:00:00]} 40. Rh4 {[%emt 0:00:21]} Nf5 {[%emt 0:00:00]} 41. Qh3 {[%emt 0:00:59]} Nxh4 {[%emt 0:00:00]} 42. Qxh4 {[%emt 0:00:08]} Kg7 {[%emt 0:00:00]} 43. Kd2 {[%emt 0:01:51]} e4 {[%emt 0:03:32]} 44. Re1 {[%emt 0:00:01]} Qe5 {[%emt 0:00:00]} 45. Qg3 {[%emt 0:00:02]} Qc3+ {[%emt 0:00:00]} 46. Kd1 {[%emt 0:00:01]} exd3 {[%emt 0:00:32]} 47. Qc7+ {[%emt 0:00:59]} Kh6 {[%emt 0:00:02]} 48. Qf4+ {[%emt 0:00:50]} g5 {[%emt 0:00:46]} 0-1

[Event "11th KIIT Festival 2018"]
[Site "Bhubaneswar"]
[Date "2018.06.01"]
[Round "10"]
[White "Ziatdinov, Raset"]
[Black "Tran, Minh Thang"]
[Result "1-0"]
[ECO "B42"]
[WhiteElo "2281"]
[BlackElo "2404"]
[Annotator "ChessBase"]
[PlyCount "52"]
[EventDate "2018.??.??"]
[EventType "swiss"]
[EventCountry "IND"]
[SourceTitle "playchess.com"]
[Source "ChessBase"]
[SourceQuality "1"]
[TimeControl "5400+30"]

1. e4 {[%emt 0:00:00]} c5 {[%emt 0:01:05]} 2. Nf3 {[%emt 0:00:03]} e6 {[%emt 0:00:05]} 3. d4 {[%emt 0:00:01]} cxd4 {[%emt 0:00:06]} 4. Nxd4 {[%emt 0:00:05]} a6 5. Bd3 {[%emt 0:00:03]} Qc7 {[%emt 0:00:38]} 6. O-O {[%emt 0:00:29]} Nf6 {[%emt 0:00:04]} 7. c4 {[%emt 0:00:19]} Nc6 {[%emt 0:01:10]} 8. Nxc6 {[%emt 0:00:07]} dxc6 {[%emt 0:00:07]} 9. f4 {[%emt 0:01:13]} e5 {[%emt 0:00:03]} 10. f5 {[%emt 0:00:19]} Bc5+ {[%emt 0:00:20]} 11. Kh1 {[%emt 0:00:00]} b5 12. Nd2 {[%emt 0:01:42]} Bd6 {[%emt 0:16:38]} 13. Nb3 {[%emt 0:00:23]} c5 {[%emt 0:07:55]} 14. cxb5 {[%emt 0:12:12]} c4 {[%emt 0:06:02]} 15. b6 {[%emt 0:01:36]} Qxb6 {[%emt 0:00:08]} 16. Bxc4 {[%emt 0:00:08]} Bb7 {[%emt 0:00:06]} 17. Qe2 {[%emt 0:17:25]} Bxe4 {[%emt 0:04:17]} 18. Bg5 {[%emt 0:03:03]} Bb7 {[%emt 0:05:09]} 19. Rad1 {[%emt 0:00:36]} Ne4 {[%emt 0:11:53]} 20. Bh4 {[%emt 0:08:01]} Nf6 {[%emt 0:20:44]} 21. Na5 {[%emt 0:08:19]} Qxa5 {[%emt 0:09:40]} 22. Rxd6 {[%emt 0:00:08]} Ke7 {[%emt 0:00:10]} 23. b4 {[%emt 0:00:45]} Qxb4 {[%emt 0:00:42]} 24. Qxe5+ {[%emt 0:01:09]} Kf8 {[%emt 0:00:00]} 25. Rfd1 {[%emt 0:01:53]} Re8 {[%emt 0:02:38]} 26. Bxf6 {[%emt 0:01:09]} gxf6 {[%emt 0:00:37]} 1-0